Cogmind - Beta 14 @@@ ROGUE MODE // 2024.11.04 @ 22:22:39 Player: Komeiji O. Result: Destroyed by G-34 Mercenary with Small Laser Performance ------------- Evolutions (0) 0 Regions Visited (1) 200 Robots Destroyed (12) 60 Value Destroyed (307) 307 Prototype IDs (0) 0 Alien Tech Used (0) 0 Bonus (0) 0 TOTAL SCORE: 567 Bonus ------- None Cogmind --------- Core Integrity 0/250 Matter 97/300 Energy 125/125 System Corruption 0% Temperature Warm (146) Movement Rolling (140) Ox4 Location -10/Materials Parts ------- > --- POWER (1) -------- Light Ion Engine > --- PROPULSION (2) --- Wheel > --- UTILITY (2) ------ High-capacity Storage Unit Targeting Computer > --- WEAPON (2) ------- Light Assault Rifle > --- INVENTORY (20) --- Backup Power III Light Nuclear Core Heat Sink Improved Terrain Scanner Targeting Computer Light Cannon Light Cannon Grenade Launcher Grenade Launcher Grenade Launcher Peak State ------------ > --- POWER ------------ Light Ion Engine > --- PROPULSION ------- Wheel Compact Wheel > --- UTILITY ---------- Small Storage Unit Targeting Computer > --- WEAPON ----------- Medium Laser Light Assault Rifle > --- INVENTORY -------- Light Ion Engine Backup Power III Wheel Improved Terrain Scanner Targeting Computer Light Assault Rifle [Rating: 8] Favorites ----------- Power Light Ion Engine Engine Light Ion Engine Propulsion Aluminum Leg Leg Aluminum Leg Wheel Wheel Utility Targeting Computer Device Seismic Detector Storage Small Storage Unit Processor Targeting Computer Weapon Light Assault Rifle Energy Gun Medium Laser Ballistic Gun Light Assault Rifle Ballistic Cannon Light Cannon Build | -11 -10 ------- Run | Yrd Mat Slots Evolved . | . . Power . | . . Propulsion . | . . Utility . | . . Weapon . | . . Parts Attached 19 | 6 13 Power 4 | 1 3 Engine 4 | 1 3 Core . | . . Reactor . | . . Propulsion 5 | 2 3 Treads . | . . Leg 2 | 2 . Wheel 3 | . 3 Hover . | . . Flight . | . . Utility 4 | 2 2 Device 1 | 1 . Storage 2 | 1 1 Processor 1 | . 1 Hackware . | . . Protection . | . . Artifact . | . . Weapon 6 | 1 5 Energy Gun 1 | . 1 Energy Cannon . | . . Ballistic Gun 3 | 1 2 Ballistic Cannon 2 | . 2 Launcher . | . . Special Weapon . | . . Impact Weapon . | . . Slashing Weapon . | . . Piercing Weapon . | . . Special Melee Weapon . | . . Unidentified Prototypes . | . . Parts Lost 8 | . 8 Power 2 | . 2 Propulsion 3 | . 3 Utility 1 | . 1 Weapon 2 | . 2 Highest Loss Streak 3 | . 3 To Critical Strikes . | . . Average Slot Usage (%) 91 | . 91 Engine 14 | . 14 Leg 6 | . 6 Wheel 14 | . 14 Storage 14 | . 14 Processor 12 | . 12 Energy Gun 7 | . 7 Ballistic Gun 11 | . 11 Ballistic Cannon 8 | . 8 Peak Build Rating 8 | 6 8 Average Rating 6 | 4 7 On Entrance 3 | . 6 Naked Turns . | . . Heaviest Build 49 | 10 49 Greatest Support 26 | 20 26 Greatest Overweight (x) 4 | . 4 Average Overweight (x) . | . . Largest Inventory Capacity 20 | 8 20 Average Capacity 12 | 7 13 Most Carried 13 | 7 13 Average Carried 8 | 4 9 Final Capacity 20 | 8 20 Final Carried 10 | 7 10 Class Distribution -------------------- 100% | Mutant Dominant Class ---------------- Mutant | -10/Materials Resources | -11 -10 ----------- Run | Yrd Mat Matter Collected 373 | 236 137 Remotely . | . . Salvage Created 291 | 27 264 Parts 23 | 5 18 Haulers Intercepted . | . . Recyclers Shooed . | . . Parts Field Recycled . | . . Retrieved Matter . | . . Parts Self-Destructed . | . . Prevented . | . . Kills | -11 -10 ------- Run | Yrd Mat Combat Hostiles Destroyed 11 | . 11 Guns 4 | . 4 Cannons 7 | . 7 Classes Destroyed 3 | 1 2 Tunneler 1 | 1 . Swarmer 5 | . 5 Grunt 6 | . 6 Best Kill Streak 5 | 1 5 Combat Bots Only 5 | . 5 Max Kills in Single Turn 1 | 1 1 Gunslinging . | . . Exploded . | . . Melee . | . . Uniques/NPCs Destroyed . | . . Combat | -11 -10 -------- Run | Yrd Mat Hostile Shots Fired 95 | . 95 Missed 15 | . 15 Damage Taken 956 | . 956 Core 259 | . 259 Absorbed by Shields . | . . Core Remaining (%) 100 | 100 . Volleys Fired 55 | 6 49 Largest 2 | 1 2 Hottest 85 | 20 85 Shots Fired 104 | 6 98 Gun 56 | 6 50 Cannon 48 | . 48 Launcher . | . . Special . | . . Kinetic 82 | 6 76 Thermal 22 | . 22 Explosive . | . . Electromagnetic . | . . Robot Hit Streak 12 | 3 12 Robot Miss Streak 6 | 3 6 Penetration Max . | . . Secondary Targets . | . . Shots Hit Robots 67 | 3 64 Core Hits 21 | 2 19 Critical Kills . | . . Critical Parts Destroyed . | . . Critical Strikes 1 | . 1 Blast 1 | . 1 Melee Attacks . | . . Impact . | . . Slashing . | . . Piercing . | . . Sneak Attacks . | . . Combat Hostiles . | . . Follow-up Attacks . | . . Damage Inflicted 872 | 20 852 Guns 401 | 20 381 Cannons 471 | . 471 Explosions . | . . Melee . | . . Ramming . | . . Kinetic 646 | 20 626 Thermal 226 | . 226 Explosive . | . . Electromagnetic . | . . Impact . | . . Slashing . | . . Piercing . | . . Highest Corruption . | . . Average Corruption . | . . Corruption Purged . | . . Corruption Blocked . | . . Overload Shots . | . . Overflow Damage 50 | . 50 Projectiles 26 | . 26 Explosions 24 | . 24 Melee . | . . Knockbacks 9 | . 9 Impact . | . . Kinetic 9 | . 9 Secondary . | . . Self-Inflicted Damage 114 | . 114 Shots 1 | . 1 Rammed . | . . Targets Rammed . | . . Kicked . | . . Crushed . | . . Highest Temperature 205 | . 205 Average Temperature 97 | . 97 Received Heat Transfer 312 | . 312 Effects 3 | . 3 Interference 3 | . 3 Siege Activations . | . . Robots Corrupted . | . . Combat Hostiles . | . . Parts Fried . | . . Impact Corruptions . | . . Robots Melted . | . . Combat Hostiles . | . . Parts Melted . | . . Heat Transferred 666 | . 666 Parts Sabotaged . | . . Parts Stolen . | . . Parts Stripped . | . . Power Chain Reactions . | . . Alert | -11 -10 ------- Run | Yrd Mat Peak Influence 397 | 5 397 Initial 3 | . 3 Average 161 | 1 211 Maximum Alert Level 1 | . 1 Low Security (%) 53 | 100 39 Level 1 46 | . 60 Level 2 . | . . Level 3 . | . . Level 4 . | . . Level 5 . | . . High Security . | . . Max Security . | . . Squads Dispatched 2 | . 2 Investigation . | . . Extermination . | . . Reinforcement 2 | . 2 Assault . | . . Garrison . | . . Intercept . | . . Searches Triggered . | . . Construction Impeded . | . . Haulers Reinforced . | . . Active Scanning Responses . | . . Cargo Convoy Interrupts . | . . Stealth | -11 -10 --------- Run | Yrd Mat Distress Signals 2 | . 2 Communications Jammed . | . . Distress Signals . | . . Times Spotted 20 | . 20 Peak Tracking Total 6 | . 6 Tactical Retreats 3 | . 3 Traps | -11 -10 ------- Run | Yrd Mat Traps Triggered . | . . Indirectly . | . . Trap Hack Attempts . | . . Triggered . | . . Disarmed . | . . Reprogrammed . | . . Reused . | . . Traps Extracted . | . . Installed . | . . Triggered . | . . Machines | -11 -10 ---------- Run | Yrd Mat Machines Disabled 2 | . 2 Max in Single Turn 2 | . 2 Machines Repaired . | . . Machines Dismantled . | . . Machines Sabotaged . | . . Overloaded Fab Kills . | . . Hacking | -11 -10 --------- Run | Yrd Mat Machines Accessed . | . . Terminals . | . . Fabricators . | . . Repair Stations . | . . Recycling Units . | . . Scanalyzers . | . . Garrison Access . | . . Total Hacks . | . . Successful . | . . Failed . | . . Catastrophic . | . . Database Lockouts . | . . Manual . | . . Terminals . | . . Fabricators . | . . Repair Stations . | . . Recycling Units . | . . Scanalyzers . | . . Garrison Access . | . . Terminal Hacks . | . . Fabricator Hacks . | . . Repair Station Hacks . | . . Recycling Unit Hacks . | . . Scanalyzer . | . . Garrison Access Hacks . | . . Unauthorized Hacks . | . . Terminals . | . . Fabricators . | . . Repair Stations . | . . Recycling Units . | . . Scanalyzers . | . . Garrison Access . | . . Data Cores Recovered . | . . Used . | . . Hacking Detections . | . . Full Trace Events . | . . Feedback Events . | . . Feedback Blocked . | . . Robot Schematics Acquired . | . . Robots Built . | . . Authchips . | . . Time . | . . Total Robot Build Rating . | . . Part Schematics Acquired . | . . Parts Built . | . . Authchips . | . . Time . | . . Total Part Build Rating . | . . Parts Repaired . | . . Time . | . . Parts Recycled . | . . Recycled Matter . | . . Retrieved Matter . | . . Retrieved Components . | . . Parts Scanalyzed . | . . Part Schematics Acquired . | . . Parts Damaged . | . . Bothacking | -11 -10 ------------ Run | Yrd Mat Used RIF Installer . | . . Robots Hacked . | . . Non-combat . | . . Combat . | . . Robot Hacks Applied . | . . Relay Couplers Released . | . . Fabnet Peak Effective % . | . . Robots Rewired . | . . Allies Hacked . | . . Hacks Repelled . | . . Allies | -11 -10 -------- Run | Yrd Mat Total Allies . | . . Largest Group . | . . Highest-Rated Group . | . . Highest-Rated Ally . | . . Total Orders . | . . Ally Attacks . | . . Total Damage . | . . Kills . | . . Allies Corrupted . | . . Allies Melted . | . . Intel | -11 -10 ------- Run | Yrd Mat Robot Analysis Total . | . . Derelict Logs Recovered . | . . Drone Launches . | . . Drone Recoveries . | . . Exploration | -11 -10 ------------- Run | Yrd Mat Turns Passed 398 | 95 303 Spaces Moved 157 | 61 96 Core 6 | 6 . Treads . | . . Legs 102 | 55 47 Wheels 49 | . 49 Hover . | . . Flight . | . . Fastest Speed 50 | 50 90 Average Speed 117 | 113 120 Slowest Speed 190 | 120 190 Overloaded Moves . | . . Propulsion Burnouts . | . . Robots Hopped . | . . Cave-ins Triggered . | . . Exploration Rate (%) 12 | 4 21 Regions Visited 1 Branch Regions . Pre-discovered Areas . | . . Known Exits Taken . | . . Unknown Exits Taken 1 | 1 . Scrap Searched . | . . Spaces Dug . | . . Terrain Destroyed 17 | . 17 Melee . | . . Projectile . | . . AOE 17 | . 17 Terrain Rammed . | . . Walls Destroyed . | . . Machines Disabled . | . . Actions | -11 -10 --------- Run | Yrd Mat Total 268 | 79 189 Wait 18 | . 18 Move 156 | 60 96 Hop . | . . Pick Up 17 | 7 10 Fast Attach 7 | 6 1 Attach 7 | . 7 Detach . | . . Swap 5 | . 5 Drop 3 | . 3 Fire 55 | 6 49 Melee . | . . Ram . | . . Kick . | . . Crush . | . . Escape Stasis . | . . Rewire . | . . Trap . | . . Miscellaneous . | . . Route ------- -11/Scrapyard -10/Materials (discovered 1 exit: [*Mat]) History --------- Turn | Location | Event 31 | -11/Scrapyard | Discovered new exit (range 15) 96 | -11/Scrapyard | Entered Materials 334 | -10/Materials | Build established: Mutant 335 | -10/Materials | Core integrity fell below 50% 360 | -10/Materials | Discovered new exit (range 12) 386 | -10/Materials | Core integrity fell below 20% 399 | -10/Materials | Destroyed by G-34 Mercenary with Small Laser Last Messages --------------- 00335_ S-10 Pest destroyed. 00338_ G-47 Trooper destroyed. 00339_ U-05 Engineer builds a Door. 00341_ Destroyed Flight Unit. 00342_ Lgt. Ion Engine destroyed. 00356_ Com. Wheel destroyed. 00357_ Destroyed Flight Unit. 00357_ S-10 Pest destroyed. 00360_ Overheating: System interference. 00360_ Lgt. Cannon temporarily disabled. 00360_ Targeting Computer temporarily disabled. 00360_ EXIT=FOUND 00361_ Acquired Lgt. Nuclear Core. 00365_ G-34 Mercenary knocked back. 00368_ G-34 Mercenary destroyed. 00375_ G-47 Trooper knocked back. 00390_ Lgt. Ion Engine destroyed. 00392_ Wheel destroyed. 00393_ G-47 Trooper destroyed. 00397_ Lgt. Cannon destroyed. Map ----- +----------------------------------------------------+ | ???# # =[*#????????????? #????????????? | | ??## ######+###??????#????? #????????????? | | ??# # !*=%[ #?????? ##?? #????????????? | | ## ** = #?????? #?? #????????????? | | ?# * = #?????? #?# ##???????????? | | ## ! #????### ## #???????????? | | ### #######/######## #???????????? | | ??#### ##?????# % #???????????? | | ?????#+#??????# #???????????? | | ??????????????#""" ! #???????????? | | ??????????????#"Y #########????????? | | ??????????????#""" * #????????? | | ?????????????# +????????? | | ?????????????# #????????? | | ??????????? + ######+######## #????????? | | ?????????"" # # [ #??? #????????? | | ?????????"" ?# # [ ! #?????????????? | | ????????? ???## # ]! """ #?????????????? | | ??????????????# # ! """ #?????????????? | | ??????????????# # [ """ #?????????????? | | ??????????????# # #?????????????? | | ??????????????# ####+#########?????????????? | | ?????????????? # =# % ## #????????? | | ?????????????? # """%#= #??????? | | ??????????????? #% """%+% < #??????? | | ????????????????? ?# """@#= #??????? | | ???????????????????# =#?? ######????????? | | ???????????????????# #????##?????????????? | | ???????????????????# % g #???????????????????? | | ???????????????????####+###???????????????????? | | ??????????????????????% ?????????????????????? | | ?????????????????????# ?????????????????????? | | ?????????????????????# ????????????????????? | | ?????????????????????# ????????????????????? | | ?????????????????????# ???????????????????? | | ?????????????????????# ???????????????????? | | ?????????????????????# ??????????????????? | | ?????????????????????# ??????????????????? | | ?????????????????????# ?????????????????? | | ?????????????????????# """ ?????????????????? | | ?????????????????????# """ ????????????????? | | ?????????????????????? ??? ????????????????? | | ?????????????????????? ??????????????????????? | | ?????????????????????? ??????????????????????? | | ??????????????????????????????????????????????? | | ??????????????????????????????????????????????? | | ??????????????????????????????????????????????? | | ??????????????????????????????????????????????? | | ??????????????????????????????????????????????? | | ??????????????????????????????????????????????? | +----------------------------------------------------+ Best States ------------- Heat Dissipation 25 Energy Generation 10 Energy Capacity 125 Matter Stores 300 Matter Capacity 300 Sight Range 16 Terrain Scan Density 10 Evasion (%) 55 Targeting Accuracy 5 Item Schematics ----------------- None Robot Schematics ------------------ None Fabricated ------------ Nothing Alien Tech Used ----------------- None Achievements -------------- None Challenges ------------ None Game ------ Seed NeutronSmallTearclaws Manual? 0 Play Time 00:06:07 Cumulative 130.7 hours Start 2024.11.04 @ 22:17:05 End 2024.11.04 @ 22:22:39 Sessions 1 Manual Loads 0 Difficulty Rogue Special Mode None Game No. 46 Rogue 45 Adventurer 1 Explorer 0 Win Type - Total 2 Types 2/0/0/0/0/0/0/0/0 Lore% 39 Gallery% 56 Achievement% 47 Wizard Run 0 Options --------- Layout 0 ASCII 1 Keyboard 1 Movement Vi Keybinds 0 Fullscreen 2 Font 36/Terminus++ Map View 76x50 Zoom Use 0% Tactical HUD 1 Map Filters NONE Filters NONE Steam 1 RUN: f239815d-a471-42cb-a32b-0d40bd7c31ba